[Event "Late-Titled-Tuesday-Blitz-June-25-2024"]
[Site "Chess.com"]
[Date "2024.06.25"]
[Round "6"]
[White "smallbaba"]
[Black "jcibarra"]
[Result "1-0"]
[WhiteElo "2616"]
[BlackElo "2907"]
[TimeControl "180+1"]
[EndTime "15:04:59 PDT"]
[Termination "smallbaba won by checkmate"]

1. e4 {[%clk 0:03:00]} 1... c5 {[%clk 0:02:59.9]} 2. Nc3 {[%clk 0:02:59.8]} 2...
a6 {[%clk 0:02:59]} 3. d4 {[%clk 0:02:59.9]} 3... cxd4 {[%clk 0:02:57.6]} 4.
Qxd4 {[%clk 0:03:00.8]} 4... Nc6 {[%clk 0:02:56]} 5. Qe3 {[%clk 0:03:01.2]} 5...
e6 {[%clk 0:02:50.7]} 6. b3 {[%clk 0:03:00]} 6... Nf6 {[%clk 0:02:42.1]} 7. Bb2
{[%clk 0:02:58.9]} 7... Qc7 {[%clk 0:02:33.5]} 8. Nf3 {[%clk 0:02:53.5]} 8... d6
{[%clk 0:02:23.6]} 9. O-O-O {[%clk 0:02:52.1]} 9... Be7 {[%clk 0:02:24.2]} 10.
Rg1 {[%clk 0:02:49.3]} 10... b5 {[%clk 0:02:22.4]} 11. g4 {[%clk 0:02:46.4]}
11... Ne5 {[%clk 0:02:13.7]} 12. Nxe5 {[%clk 0:02:42.6]} 12... dxe5 {[%clk
0:02:12.6]} 13. Kb1 {[%clk 0:02:12.9]} 13... Bb7 {[%clk 0:02:09.2]} 14. g5
{[%clk 0:02:10.4]} 14... Nd7 {[%clk 0:02:05.2]} 15. Be2 {[%clk 0:02:02.8]} 15...
Rc8 {[%clk 0:01:50.6]} 16. Bd3 {[%clk 0:01:56.4]} 16... Bc5 {[%clk 0:01:33.4]}
17. Qe1 {[%clk 0:01:51.9]} 17... Qb6 {[%clk 0:01:31.7]} 18. Rf1 {[%clk 0:01:48]}
18... Qc7 {[%clk 0:01:29.3]} 19. h4 {[%clk 0:01:39.4]} 19... O-O {[%clk
0:01:22]} 20. h5 {[%clk 0:01:36.8]} 20... Qc6 {[%clk 0:01:03]} 21. f4 {[%clk
0:01:19.7]} 21... Bb4 {[%clk 0:00:56.5]} 22. Nd5 {[%clk 0:01:06.9]} 22... exd5
{[%clk 0:00:53.6]} 23. Qxb4 {[%clk 0:01:04.1]} 23... dxe4 {[%clk 0:00:53.7]} 24.
Be2 {[%clk 0:00:55.1]} 24... Qxc2+ {[%clk 0:00:52.7]} 25. Ka1 {[%clk 0:00:50.1]}
25... Qxe2 {[%clk 0:00:53.1]} 26. Rfe1 {[%clk 0:00:49.7]} 26... Qg4 {[%clk
0:00:49.4]} 27. g6 {[%clk 0:00:42.6]} 27... h6 {[%clk 0:00:38.1]} 28. Qe7 {[%clk
0:00:39.3]} 28... Bc6 {[%clk 0:00:35.2]} 29. Rd6 {[%clk 0:00:30.1]} 29... Nf6
{[%clk 0:00:32.4]} 30. Rxf6 {[%clk 0:00:16.9]} 30... gxf6 {[%clk 0:00:20.2]} 31.
Qxf6 {[%clk 0:00:17.8]} 31... Rce8 {[%clk 0:00:13]} 32. Qxc6 {[%clk 0:00:14.7]}
32... Qg3 {[%clk 0:00:07.6]} 33. gxf7+ {[%clk 0:00:14]} 33... Kxf7 {[%clk
0:00:06.9]} 34. Rd1 {[%clk 0:00:14.1]} 34... Qxf4 {[%clk 0:00:06.8]} 35. Rd7+
{[%clk 0:00:13.9]} 35... Re7 {[%clk 0:00:06.5]} 36. Qd5+ {[%clk 0:00:13.5]}
36... Ke8 {[%clk 0:00:06.4]} 37. Rd8# {[%clk 0:00:12.9]} 1-0

[Event "Late-Titled-Tuesday-Blitz-June-25-2024"]
[Site "Chess.com"]
[Date "2024.06.25"]
[Round "6"]
[White "norwaytoadog"]
[Black "ShimogaTactician"]
[Result "0-1"]
[WhiteElo "2368"]
[BlackElo "2521"]
[TimeControl "180+1"]
[EndTime "15:04:59 PDT"]
[Termination "ShimogaTactician won on time"]

1. e4 {[%clk 0:02:58.4]} 1... g6 {[%clk 0:03:00]} 2. d4 {[%clk 0:02:58.3]} 2...
Bg7 {[%clk 0:02:59.9]} 3. Nc3 {[%clk 0:02:59]} 3... c6 {[%clk 0:03:00.1]} 4. Be3
{[%clk 0:02:58.2]} 4... d5 {[%clk 0:02:50.7]} 5. h3 {[%clk 0:02:58]} 5... dxe4
{[%clk 0:02:49.1]} 6. Nxe4 {[%clk 0:02:57.6]} 6... Nd7 {[%clk 0:02:49.2]} 7. Bc4
{[%clk 0:02:56.9]} 7... Ngf6 {[%clk 0:02:40.6]} 8. Ng5 {[%clk 0:02:45.4]} 8...
Nd5 {[%clk 0:02:39.6]} 9. N1f3 {[%clk 0:02:28.3]} 9... b5 {[%clk 0:02:20.6]} 10.
Bb3 {[%clk 0:02:18.5]} 10... a5 {[%clk 0:02:09.2]} 11. a4 {[%clk 0:02:18.1]}
11... b4 {[%clk 0:02:09.1]} 12. Qd2 {[%clk 0:02:13.6]} 12... Ba6 {[%clk
0:02:05.1]} 13. h4 {[%clk 0:02:04.7]} 13... h6 {[%clk 0:02:02.9]} 14. Ne4 {[%clk
0:02:04.2]} 14... e6 {[%clk 0:02:02.3]} 15. Nd6+ {[%clk 0:01:59.5]} 15... Ke7
{[%clk 0:02:01.6]} 16. Nc4 {[%clk 0:01:55.8]} 16... Qc7 {[%clk 0:01:57.3]} 17.
O-O {[%clk 0:01:39]} 17... c5 {[%clk 0:01:37.7]} 18. dxc5 {[%clk 0:01:25.2]}
18... Nxe3 {[%clk 0:01:37.5]} 19. Qd6+ {[%clk 0:00:34.1]} 19... Kd8 {[%clk
0:01:32.4]} 20. fxe3 {[%clk 0:00:25.7]} 20... Bxc4 {[%clk 0:01:32.2]} 21. Bxc4
{[%clk 0:00:23.3]} 21... Qxc5 {[%clk 0:01:32.3]} 22. Qxc5 {[%clk 0:00:19.5]}
22... Nxc5 {[%clk 0:01:33.2]} 23. Rad1+ {[%clk 0:00:19.1]} 23... Ke7 {[%clk
0:01:31.6]} 24. Nd4 {[%clk 0:00:19]} 24... Rhc8 {[%clk 0:01:29.1]} 25. b3 {[%clk
0:00:18.5]} 25... Ne4 {[%clk 0:01:24.3]} 26. Nb5 {[%clk 0:00:17.7]} 26... Rxc4
{[%clk 0:01:19.1]} 27. bxc4 {[%clk 0:00:17]} 27... Rc8 {[%clk 0:01:19.5]} 28.
Rf4 {[%clk 0:00:14.6]} 28... Rxc4 {[%clk 0:01:15.5]} 29. h5 {[%clk 0:00:13.9]}
29... g5 {[%clk 0:01:15.3]} 30. Rff1 {[%clk 0:00:13.2]} 30... f5 {[%clk
0:01:14.6]} 31. Rd3 {[%clk 0:00:11.1]} 31... Nc3 {[%clk 0:01:08.8]} 32. Rf2
{[%clk 0:00:10.3]} 32... Ne4 {[%clk 0:01:04]} 33. Rf1 {[%clk 0:00:10.2]} 33...
Nc3 {[%clk 0:01:04.3]} 34. Rf2 {[%clk 0:00:09.6]} 34... Nxa4 {[%clk 0:01:04.2]}
35. Rfd2 {[%clk 0:00:09.2]} 35... Nc5 {[%clk 0:01:04.4]} 36. Rd8 {[%clk
0:00:08.4]} 36... Bc3 {[%clk 0:01:03.8]} 37. Rd1 {[%clk 0:00:07.8]} 37... a4
{[%clk 0:00:45.2]} 38. Nc7 {[%clk 0:00:07.6]} 38... a3 {[%clk 0:00:41.9]} 39.
Re8+ {[%clk 0:00:07.7]} 39... Kf6 {[%clk 0:00:42.2]} 40. Rdd8 {[%clk 0:00:06.5]}
40... a2 {[%clk 0:00:41.3]} 41. Rf8+ {[%clk 0:00:06.3]} 41... Ke5 {[%clk
0:00:41.5]} 42. Rd5+ {[%clk 0:00:02.8]} 42... exd5 {[%clk 0:00:38.8]} 43. Re8+
{[%clk 0:00:02.8]} 43... Kd6 {[%clk 0:00:39.2]} 44. Nb5+ {[%clk 0:00:02.7]}
44... Kd7 {[%clk 0:00:38.9]} 0-1

[Event "Late-Titled-Tuesday-Blitz-June-25-2024"]
[Site "Chess.com"]
[Date "2024.06.25"]
[Round "6"]
[White "ErikRonka"]
[Black "Flopezin"]
[Result "0-1"]
[WhiteElo "2487"]
[BlackElo "2396"]
[TimeControl "180+1"]
[EndTime "15:05:00 PDT"]
[Termination "Flopezin won on time"]

1. d4 {[%clk 0:03:00.9]} 1... d5 {[%clk 0:02:57.6]} 2. Nf3 {[%clk 0:02:56.6]}
2... Nf6 {[%clk 0:02:56.5]} 3. g3 {[%clk 0:02:57]} 3... e6 {[%clk 0:02:55.7]} 4.
Bg2 {[%clk 0:02:56.9]} 4... Nc6 {[%clk 0:02:56.1]} 5. O-O {[%clk 0:02:57.5]}
5... Bd6 {[%clk 0:02:54.1]} 6. b3 {[%clk 0:02:30.4]} 6... O-O {[%clk 0:02:53.4]}
7. Bb2 {[%clk 0:02:30.7]} 7... Re8 {[%clk 0:02:50.8]} 8. Ne5 {[%clk 0:02:30.8]}
8... Nd7 {[%clk 0:02:39.6]} 9. f4 {[%clk 0:02:19.4]} 9... f6 {[%clk 0:02:31.7]}
10. Nxc6 {[%clk 0:02:17.8]} 10... bxc6 {[%clk 0:02:32.2]} 11. e4 {[%clk
0:02:18.3]} 11... a5 {[%clk 0:02:18.2]} 12. Nc3 {[%clk 0:02:00.8]} 12... Ba6
{[%clk 0:02:12.6]} 13. Re1 {[%clk 0:02:01]} 13... Nb6 {[%clk 0:02:12.5]} 14. Bh3
{[%clk 0:01:57.2]} 14... Bb4 {[%clk 0:02:01.8]} 15. a3 {[%clk 0:01:37.1]} 15...
Bxc3 {[%clk 0:01:51.9]} 16. Bxc3 {[%clk 0:01:38]} 16... a4 {[%clk 0:01:52.3]}
17. Qd2 {[%clk 0:01:26.7]} 17... Qd7 {[%clk 0:01:44.8]} 18. Rad1 {[%clk
0:01:20.6]} 18... f5 {[%clk 0:01:44.2]} 19. exf5 {[%clk 0:01:14.4]} 19... exf5
{[%clk 0:01:43.6]} 20. Re5 {[%clk 0:01:15]} 20... g6 {[%clk 0:01:38.9]} 21. Rde1
{[%clk 0:01:13.5]} 21... Rxe5 {[%clk 0:01:22.3]} 22. fxe5 {[%clk 0:01:12.5]}
22... Qe8 {[%clk 0:01:13]} 23. e6 {[%clk 0:00:47.1]} 23... axb3 {[%clk
0:01:09.8]} 24. cxb3 {[%clk 0:00:47]} 24... Nc8 {[%clk 0:01:10.4]} 25. Bb4
{[%clk 0:00:38.7]} 25... Nd6 {[%clk 0:01:09.2]} 26. Bxd6 {[%clk 0:00:38.7]}
26... cxd6 {[%clk 0:01:09.4]} 27. g4 {[%clk 0:00:35.9]} 27... fxg4 {[%clk
0:01:04.7]} 28. Bxg4 {[%clk 0:00:36.8]} 28... Qe7 {[%clk 0:01:05]} 29. Rf1
{[%clk 0:00:29]} 29... Rf8 {[%clk 0:01:02.9]} 30. Rxf8+ {[%clk 0:00:27.8]} 30...
Kxf8 {[%clk 0:01:00.9]} 31. Qa5 {[%clk 0:00:19.9]} 31... Bd3 {[%clk 0:00:48.8]}
32. Qa8+ {[%clk 0:00:14.3]} 32... Kg7 {[%clk 0:00:48.8]} 33. Qxc6 {[%clk
0:00:11.1]} 33... Qg5 {[%clk 0:00:48.1]} 34. h3 {[%clk 0:00:03.8]} 34... Qe3+
{[%clk 0:00:46.8]} 35. Kg2 {[%clk 0:00:02.8]} 35... Be4+ {[%clk 0:00:41.5]} 36.
Kf1 {[%clk 0:00:01.9]} 36... Bd3+ {[%clk 0:00:29.1]} 37. Kg2 {[%clk 0:00:01.6]}
37... Qd2+ {[%clk 0:00:25.8]} 38. Kg3 {[%clk 0:00:02.1]} 38... Qe1+ {[%clk
0:00:25.6]} 39. Kg2 {[%clk 0:00:02.3]} 39... Be4+ {[%clk 0:00:25.5]} 0-1

[Event "Late-Titled-Tuesday-Blitz-June-25-2024"]
[Site "Chess.com"]
[Date "2024.06.25"]
[Round "6"]
[White "Dexter_Dyke"]
[Black "Mikhail_Golubev"]
[Result "0-1"]
[WhiteElo "2512"]
[BlackElo "2655"]
[TimeControl "180+1"]
[EndTime "15:05:02 PDT"]
[Termination "Mikhail_Golubev won by resignation"]

1. e4 {[%clk 0:03:00.8]} 1... c5 {[%clk 0:02:59.5]} 2. Nf3 {[%clk 0:03:00.7]}
2... d6 {[%clk 0:02:59.7]} 3. d4 {[%clk 0:03:01.1]} 3... Nf6 {[%clk 0:02:59.8]}
4. Nc3 {[%clk 0:03:00.9]} 4... cxd4 {[%clk 0:02:59.7]} 5. Nxd4 {[%clk
0:03:01.5]} 5... Nc6 {[%clk 0:02:59.3]} 6. Bg5 {[%clk 0:03:00.6]} 6... e6 {[%clk
0:02:59.5]} 7. Qd2 {[%clk 0:03:00.5]} 7... a6 {[%clk 0:02:59.5]} 8. O-O-O {[%clk
0:03:00.3]} 8... Bd7 {[%clk 0:02:59.6]} 9. Nb3 {[%clk 0:03:00.4]} 9... Be7
{[%clk 0:02:32.1]} 10. f4 {[%clk 0:02:59.8]} 10... O-O {[%clk 0:02:24.4]} 11.
Bd3 {[%clk 0:02:58.7]} 11... h6 {[%clk 0:02:09.8]} 12. h4 {[%clk 0:02:54.1]}
12... b5 {[%clk 0:02:09.7]} 13. Kb1 {[%clk 0:02:52.9]} 13... Qb6 {[%clk
0:01:54]} 14. f5 {[%clk 0:02:47.4]} 14... Ne5 {[%clk 0:01:36.4]} 15. Be3 {[%clk
0:02:43.6]} 15... Qc7 {[%clk 0:01:35.7]} 16. g4 {[%clk 0:02:39]} 16... Nfxg4
{[%clk 0:01:25.8]} 17. Rdg1 {[%clk 0:02:33.9]} 17... Nxe3 {[%clk 0:01:16]} 18.
Qxe3 {[%clk 0:02:34.8]} 18... Kh8 {[%clk 0:01:15.8]} 19. Qf4 {[%clk 0:02:16.5]}
19... Bf6 {[%clk 0:01:11.1]} 20. Rg3 {[%clk 0:01:56.8]} 20... Rac8 {[%clk
0:01:06.5]} 21. a3 {[%clk 0:01:46.4]} 21... a5 {[%clk 0:00:55.1]} 22. Rhg1
{[%clk 0:01:46]} 22... Rg8 {[%clk 0:00:50.1]} 23. fxe6 {[%clk 0:01:30.1]} 23...
fxe6 {[%clk 0:00:25.4]} 24. Rg6 {[%clk 0:00:45.5]} 24... Kh7 {[%clk 0:00:20.1]}
25. Rxf6 {[%clk 0:00:38.1]} 25... gxf6 {[%clk 0:00:18.3]} 26. Rxg8 {[%clk
0:00:38]} 26... Rxg8 {[%clk 0:00:16.9]} 27. Qxf6 {[%clk 0:00:37.8]} 27... b4
{[%clk 0:00:13.8]} 28. axb4 {[%clk 0:00:19.4]} 28... axb4 {[%clk 0:00:14.7]} 29.
Ne2 {[%clk 0:00:20.3]} 29... Nxd3 {[%clk 0:00:13.9]} 30. cxd3 {[%clk 0:00:20.2]}
30... Bb5 {[%clk 0:00:12.9]} 31. Nf4 {[%clk 0:00:16.3]} 31... Rg1+ {[%clk
0:00:09.4]} 32. Ka2 {[%clk 0:00:07.3]} 32... Qa7+ {[%clk 0:00:09.2]} 0-1

[Event "Late-Titled-Tuesday-Blitz-June-25-2024"]
[Site "Chess.com"]
[Date "2024.06.25"]
[Round "6"]
[White "canary2016"]
[Black "schondeln"]
[Result "0-1"]
[WhiteElo "2233"]
[BlackElo "2384"]
[TimeControl "180+1"]
[EndTime "15:05:02 PDT"]
[Termination "schondeln won on time"]

1. d4 {[%clk 0:03:00.9]} 1... d5 {[%clk 0:02:59.5]} 2. c4 {[%clk 0:03:00.1]}
2... c6 {[%clk 0:02:59.6]} 3. Nf3 {[%clk 0:02:57.2]} 3... Nf6 {[%clk 0:02:59.3]}
4. g3 {[%clk 0:02:57.1]} 4... Bg4 {[%clk 0:02:58.2]} 5. Ne5 {[%clk 0:02:54.6]}
5... Bf5 {[%clk 0:02:55.7]} 6. Bg2 {[%clk 0:02:52.8]} 6... e6 {[%clk 0:02:54.9]}
7. O-O {[%clk 0:02:52]} 7... Nbd7 {[%clk 0:02:54.6]} 8. f4 {[%clk 0:02:42.3]}
8... Be7 {[%clk 0:02:47]} 9. Nc3 {[%clk 0:02:41.4]} 9... O-O {[%clk 0:02:45]}
10. e3 {[%clk 0:02:14.4]} 10... Rc8 {[%clk 0:02:34.8]} 11. Kh1 {[%clk
0:01:42.8]} 11... h6 {[%clk 0:02:19.3]} 12. b3 {[%clk 0:01:14.8]} 12... Bb4
{[%clk 0:01:53.6]} 13. Bb2 {[%clk 0:01:14]} 13... Bxc3 {[%clk 0:01:53.5]} 14.
Bxc3 {[%clk 0:01:13.4]} 14... Be4 {[%clk 0:01:53.9]} 15. Bb4 {[%clk 0:01:02.7]}
15... Re8 {[%clk 0:01:43.3]} 16. Ng4 {[%clk 0:00:38.4]} 16... Bxg2+ {[%clk
0:01:40.9]} 17. Kxg2 {[%clk 0:00:38.1]} 17... Ne4 {[%clk 0:01:16]} 18. Ne5
{[%clk 0:00:33.6]} 18... c5 {[%clk 0:00:55.5]} 19. Ba3 {[%clk 0:00:25.2]} 19...
b6 {[%clk 0:00:41.2]} 20. Qh5 {[%clk 0:00:24.6]} 20... Nxe5 {[%clk 0:00:35.6]}
21. fxe5 {[%clk 0:00:22]} 21... Rc7 {[%clk 0:00:35.9]} 22. Rf4 {[%clk
0:00:15.8]} 22... Qg5 {[%clk 0:00:34.5]} 23. Qf3 {[%clk 0:00:11.9]} 23... Qg6
{[%clk 0:00:25.9]} 24. Rf1 {[%clk 0:00:11.5]} 24... Nd2 {[%clk 0:00:23.6]} 25.
Qe2 {[%clk 0:00:07.3]} 25... Nxf1 {[%clk 0:00:23.5]} 26. Qxf1 {[%clk 0:00:07.8]}
26... cxd4 {[%clk 0:00:18.6]} 27. exd4 {[%clk 0:00:07.7]} 27... dxc4 {[%clk
0:00:19]} 28. bxc4 {[%clk 0:00:07.8]} 28... Qc2+ {[%clk 0:00:17.4]} 29. Rf2
{[%clk 0:00:03.7]} 29... Qxc4 {[%clk 0:00:17.3]} 30. Qxc4 {[%clk 0:00:02.5]}
30... Rxc4 {[%clk 0:00:16.8]} 31. Rd2 {[%clk 0:00:02.9]} 31... Rec8 {[%clk
0:00:14.9]} 32. Bd6 {[%clk 0:00:01.6]} 32... Rc2 {[%clk 0:00:14.6]} 33. Rxc2
{[%clk 0:00:01]} 33... Rxc2+ {[%clk 0:00:13.7]} 34. Kf3 {[%clk 0:00:01.9]} 34...
Rxa2 {[%clk 0:00:13.8]} 35. h4 {[%clk 0:00:01.7]} 35... Ra5 {[%clk 0:00:13.1]}
0-1

[Event "Late-Titled-Tuesday-Blitz-June-25-2024"]
[Site "Chess.com"]
[Date "2024.06.25"]
[Round "6"]
[White "JSPrepz"]
[Black "MagnusCarlsen"]
[Result "0-1"]
[WhiteElo "2821"]
[BlackElo "3168"]
[TimeControl "180+1"]
[EndTime "15:05:05 PDT"]
[Termination "MagnusCarlsen won on time"]

1. e4 {[%clk 0:03:00.9]} 1... a6 {[%clk 0:02:59.3]} 2. d4 {[%clk 0:02:59.7]}
2... e6 {[%clk 0:02:59.2]} 3. Nc3 {[%clk 0:02:57.8]} 3... b5 {[%clk 0:02:58.5]}
4. a3 {[%clk 0:02:56.3]} 4... Bb7 {[%clk 0:02:57.6]} 5. Bd3 {[%clk 0:02:55.9]}
5... c5 {[%clk 0:02:57.4]} 6. Nf3 {[%clk 0:02:51.4]} 6... c4 {[%clk 0:02:54.5]}
7. Be2 {[%clk 0:02:50.9]} 7... Nf6 {[%clk 0:02:55.2]} 8. d5 {[%clk 0:02:47.9]}
8... Bc5 {[%clk 0:02:52.1]} 9. O-O {[%clk 0:02:45.6]} 9... O-O {[%clk
0:02:46.8]} 10. Bg5 {[%clk 0:02:45.7]} 10... h6 {[%clk 0:02:46.7]} 11. Bh4
{[%clk 0:02:46.1]} 11... d6 {[%clk 0:02:43.9]} 12. Nd4 {[%clk 0:02:34.2]} 12...
e5 {[%clk 0:01:51.5]} 13. Nf5 {[%clk 0:02:33.7]} 13... Bc8 {[%clk 0:01:49.4]}
14. Kh1 {[%clk 0:01:58.9]} 14... Bxf5 {[%clk 0:01:46.7]} 15. exf5 {[%clk
0:01:59.8]} 15... Nbd7 {[%clk 0:01:46.3]} 16. Ne4 {[%clk 0:01:59.9]} 16... Qb6
{[%clk 0:01:43.2]} 17. Bxf6 {[%clk 0:01:55.3]} 17... Nxf6 {[%clk 0:01:44]} 18.
Nxf6+ {[%clk 0:01:55]} 18... gxf6 {[%clk 0:01:44.9]} 19. f4 {[%clk 0:01:51.6]}
19... e4 {[%clk 0:01:41.3]} 20. Bh5 {[%clk 0:01:49.9]} 20... Rfe8 {[%clk
0:01:37.5]} 21. Qg4+ {[%clk 0:01:48.3]} 21... Kf8 {[%clk 0:01:37.2]} 22. Rae1
{[%clk 0:01:26]} 22... e3 {[%clk 0:01:36.8]} 23. Rf3 {[%clk 0:01:18.6]} 23...
Ke7 {[%clk 0:01:28.9]} 24. Qg7 {[%clk 0:01:16.6]} 24... Rf8 {[%clk 0:01:28.5]}
25. b4 {[%clk 0:01:10.4]} 25... cxb3 {[%clk 0:01:27.8]} 26. cxb3 {[%clk
0:01:11.3]} 26... a5 {[%clk 0:01:24.4]} 27. b4 {[%clk 0:01:10.2]} 27... axb4
{[%clk 0:01:24.4]} 28. axb4 {[%clk 0:01:11.1]} 28... Bd4 {[%clk 0:01:24.7]} 29.
h3 {[%clk 0:00:57.5]} 29... Ra3 {[%clk 0:01:12.3]} 30. Kh2 {[%clk 0:00:52.6]}
30... Qc7 {[%clk 0:01:07.1]} 31. Re2 {[%clk 0:00:42.7]} 31... Qc4 {[%clk
0:00:58.9]} 32. Rf1 {[%clk 0:00:30.5]} 32... Qxd5 {[%clk 0:00:58.4]} 33. Rc1
{[%clk 0:00:30.6]} 33... Bb6 {[%clk 0:00:50.4]} 34. g3 {[%clk 0:00:08.4]} 34...
Ra2 {[%clk 0:00:45.9]} 35. Rcc2 {[%clk 0:00:08.1]} 35... Rxc2 {[%clk 0:00:45]}
36. Rxc2 {[%clk 0:00:08]} 36... Qxf5 {[%clk 0:00:41.2]} 37. Rc6 {[%clk
0:00:04.2]} 37... Qxh5 {[%clk 0:00:38.8]} 38. Rxb6 {[%clk 0:00:01.7]} 38... Qe2+
{[%clk 0:00:38.4]} 39. Kh1 {[%clk 0:00:02.2]} 39... Qf1+ {[%clk 0:00:38.4]} 40.
Kh2 {[%clk 0:00:02.8]} 40... Qf2+ {[%clk 0:00:37.6]} 41. Kh1 {[%clk 0:00:03.4]}
41... Qf3+ {[%clk 0:00:38.4]} 42. Kh2 {[%clk 0:00:03.8]} 42... e2 {[%clk
0:00:38.4]} 0-1

[Event "Late-Titled-Tuesday-Blitz-June-25-2024"]
[Site "Chess.com"]
[Date "2024.06.25"]
[Round "6"]
[White "Alex_Sahakyan2006"]
[Black "hansen"]
[Result "1-0"]
[WhiteElo "2748"]
[BlackElo "2970"]
[TimeControl "180+1"]
[EndTime "15:05:05 PDT"]
[Termination "Alex_Sahakyan2006 won on time"]

1. e4 {[%clk 0:03:00.9]} 1... e5 {[%clk 0:02:47.4]} 2. Nf3 {[%clk 0:03:00.5]}
2... Nc6 {[%clk 0:02:47.5]} 3. Nc3 {[%clk 0:03:00.7]} 3... Nf6 {[%clk 0:02:39]}
4. Bb5 {[%clk 0:03:00.1]} 4... Bd6 {[%clk 0:02:36.8]} 5. d3 {[%clk 0:02:59.2]}
5... O-O {[%clk 0:02:36.9]} 6. h3 {[%clk 0:02:57.7]} 6... a6 {[%clk 0:02:29.1]}
7. Ba4 {[%clk 0:02:57.8]} 7... Re8 {[%clk 0:01:56.3]} 8. Bg5 {[%clk 0:02:53.2]}
8... b5 {[%clk 0:01:50]} 9. Bb3 {[%clk 0:02:52.1]} 9... Be7 {[%clk 0:01:50]} 10.
O-O {[%clk 0:02:40.8]} 10... d6 {[%clk 0:01:50]} 11. a4 {[%clk 0:02:38.7]} 11...
Rb8 {[%clk 0:01:45.3]} 12. axb5 {[%clk 0:02:38.4]} 12... axb5 {[%clk 0:01:46.2]}
13. Qd2 {[%clk 0:02:34.4]} 13... Nb4 {[%clk 0:01:09.7]} 14. Ra7 {[%clk
0:02:14.9]} 14... Be6 {[%clk 0:01:00.4]} 15. Bxe6 {[%clk 0:02:11.6]} 15... fxe6
{[%clk 0:01:00.6]} 16. Ne2 {[%clk 0:02:01.7]} 16... Nc6 {[%clk 0:00:58.9]} 17.
Ra6 {[%clk 0:02:01.4]} 17... Qd7 {[%clk 0:00:59]} 18. Ng3 {[%clk 0:02:01]} 18...
Rf8 {[%clk 0:00:49.6]} 19. Rfa1 {[%clk 0:01:54.5]} 19... Ne8 {[%clk 0:00:42.2]}
20. Bxe7 {[%clk 0:01:51.3]} 20... Nxe7 {[%clk 0:00:41.3]} 21. Ra8 {[%clk
0:01:43.7]} 21... Nf6 {[%clk 0:00:40.6]} 22. Rxb8 {[%clk 0:01:43]} 22... Rxb8
{[%clk 0:00:41.5]} 23. Qc3 {[%clk 0:01:39.5]} 23... c5 {[%clk 0:00:32.5]} 24. b4
{[%clk 0:01:39.1]} 24... cxb4 {[%clk 0:00:31.6]} 25. Qxb4 {[%clk 0:01:38.7]}
25... h6 {[%clk 0:00:32]} 26. Ra6 {[%clk 0:01:33.7]} 26... Nc6 {[%clk
0:00:32.5]} 27. Qc3 {[%clk 0:01:33.3]} 27... Rc8 {[%clk 0:00:31.4]} 28. Qb3
{[%clk 0:01:30.2]} 28... Rb8 {[%clk 0:00:25.3]} 29. Nf1 {[%clk 0:01:27.1]} 29...
Kh7 {[%clk 0:00:23.7]} 30. Ne3 {[%clk 0:01:27]} 30... Qc8 {[%clk 0:00:23.5]} 31.
Ra1 {[%clk 0:01:24.1]} 31... Nd4 {[%clk 0:00:22.4]} 32. Nxd4 {[%clk 0:01:23.5]}
32... exd4 {[%clk 0:00:23.3]} 33. Ng4 {[%clk 0:01:23.2]} 33... Nxg4 {[%clk
0:00:22.8]} 34. hxg4 {[%clk 0:01:24.1]} 34... e5 {[%clk 0:00:21.7]} 35. g5
{[%clk 0:01:23.5]} 35... hxg5 {[%clk 0:00:21.8]} 36. Qf7 {[%clk 0:01:22.1]}
36... Rb7 {[%clk 0:00:17.5]} 37. Qh5+ {[%clk 0:01:21.2]} 37... Kg8 {[%clk
0:00:18]} 38. Qxg5 {[%clk 0:01:21.6]} 38... Rc7 {[%clk 0:00:18.1]} 39. Qg6
{[%clk 0:01:17.4]} 39... Rxc2 {[%clk 0:00:16.2]} 40. Ra7 {[%clk 0:00:58.8]}
40... Rc1+ {[%clk 0:00:16]} 41. Kh2 {[%clk 0:00:58.7]} 41... Rc7 {[%clk
0:00:16.7]} 42. Rxc7 {[%clk 0:00:57.2]} 42... Qxc7 {[%clk 0:00:17.6]} 43. Qe8+
{[%clk 0:00:57.7]} 43... Kh7 {[%clk 0:00:18.4]} 44. Qxb5 {[%clk 0:00:58.6]}
44... Qe7 {[%clk 0:00:16.6]} 45. g3 {[%clk 0:00:58.4]} 45... Qf6 {[%clk
0:00:15.4]} 46. Kg2 {[%clk 0:00:58.7]} 46... Kh6 {[%clk 0:00:16.1]} 47. Qe8
{[%clk 0:00:58.7]} 47... g6 {[%clk 0:00:15.5]} 48. Qg8 {[%clk 0:00:56.9]} 48...
Qg7 {[%clk 0:00:10.6]} 49. Qxg7+ {[%clk 0:00:56.5]} 49... Kxg7 {[%clk
0:00:11.1]} 50. Kf3 {[%clk 0:00:57]} 50... Kf7 {[%clk 0:00:05.5]} 51. Kg4 {[%clk
0:00:57.2]} 51... Kf6 {[%clk 0:00:06.2]} 52. f3 {[%clk 0:00:57.5]} 52... Ke6
{[%clk 0:00:05.9]} 53. Kg5 {[%clk 0:00:57.7]} 53... Kf7 {[%clk 0:00:06.6]} 54.
Kh6 {[%clk 0:00:57.9]} 54... Kf6 {[%clk 0:00:06.9]} 55. g4 {[%clk 0:00:57.6]}
55... Kf7 {[%clk 0:00:01.6]} 56. g5 {[%clk 0:00:56.9]} 56... Kf8 {[%clk
0:00:01.3]} 57. Kxg6 {[%clk 0:00:57]} 1-0